bitfinex/quotes_SOLUSD_20250904
["timestamp","ask_amount","ask_price","bid_price","bid_amount"]
[1756955180104,35.67671983,208.09,208.08,0.03]
[1756955181202,31.51561295,208.09,208.08,0.03]
[1756955181369,30.87110688,208.09,208.08,0.03]
[1756955181572,4.87110688,208.09,208.08,0.03]
[1756955182092,9.67671983,208.09,208.08,0.03]
[1756955182505,30.87110688,208.09,208.08,0.03]
[1756955183194,0.71,208.09,208.08,0.03]
[1756955183384,4.87110688,208.09,208.08,0.03]
[1756955183781,4.16110688,208.12,208.08,0.03]
[1756955183988,4.16110688,208.1,208.08,0.03]
[1756955184178,4.87110688,208.09,208.08,0.03]
[1756955184381,0.71,208.1,208.08,0.03]
[1756955184695,0.71,208.13,208.08,0.03]
[1756955185309,0.71,208.12,208.08,0.03]
[1756955185704,40.36,208.15,208.08,5.4958439]
[1756955185705,41.07,208.15,208.08,5.4958439]
[1756955185994,4.16110688,208.14,208.08,5.4958439]
[1756955186194,40.36,208.15,208.09,4.16110688]
[1756955186404,45.23110688,208.15,208.08,8.99695078]
[1756955186776,40.36,208.15,208.09,4.82110688]
[1756955187079,40.36,208.15,208.09,0.66]
[1756955187399,40.36,208.15,208.09,4.82110688]
[1756955187582,40.36,208.15,208.08,4.8358439]
[1756955187583,26.0,208.12,208.08,0.03]
[1756955187788,30.16110688,208.12,208.08,0.03]
[1756955187983,0.71,208.12,208.08,0.03]
[1756955188581,4.87110688,208.11,208.08,0.03]
[1756955189075,0.71,208.1,208.08,0.03]
[1756955189891,4.87110688,208.1,208.08,0.03]
[1756955190683,4.22110688,208.12,208.08,0.03]
[1756955191084,0.71,208.11,208.08,0.03]
[1756955191597,4.22110688,208.12,208.08,0.03]
[1756955191900,4.93110688,208.12,208.08,0.03]
[1756955192100,4.22110688,208.12,208.08,0.03]
[1756955192310,4.16110688,208.09,208.08,0.03]
[1756955192789,4.87110688,208.09,208.08,0.03]
[1756955193299,4.16110688,208.09,208.08,0.03]
[1756955193484,30.22110688,208.12,208.08,0.03]
[1756955193692,0.06,208.12,208.08,0.69]
[1756955193892,0.06,208.12,208.08,0.03]
[1756955194094,0.77,208.12,208.08,0.03]
[1756955194904,0.06,208.12,208.08,0.69]
[1756955195706,0.06,208.12,208.11,4.16110688]
[1756955196107,0.06,208.12,208.11,4.82110688]
[1756955196305,0.06,208.12,208.11,18.70102403]
[1756955196509,0.06,208.17,208.12,13.87991715]
[1756955196687,0.06,208.17,208.16,4.16110688]
[1756955197084,0.06,208.17,208.16,18.70102403]
[1756955197917,1e-08,208.17,208.16,18.70102403]
[1756955198100,1e-08,208.17,208.16,19.27750366]
[1756955198487,1e-08,208.17,208.16,24.08150058]
[1756955199195,1e-08,208.17,208.16,19.9203937]
[1756955199493,1e-08,208.17,208.16,24.08150058]
[1756955200997,1e-08,208.17,208.16,64.20150058]
[1756955201508,1e-08,208.17,208.16,60.0403937]
[1756955201713,1e-08,208.17,208.16,63.62502095]
[1756955201911,1e-08,208.17,208.16,64.20150058]
[1756955202220,0.06,208.23,208.22,39.59559401]
[1756955202508,0.06,208.28,208.23,13.87991715]
[1756955202715,0.06,208.28,208.25,18.04102403]
[1756955203013,0.06,208.28,208.25,22.84294479]
[1756955204304,0.06,208.28,208.25,13.87991715]
[1756955204508,0.06,208.28,208.25,18.04102403]
[1756955205026,0.06,208.28,208.25,20.66488715]
[1756955205716,0.06,208.28,208.25,25.46680791]
[1756955206218,0.06,208.28,208.25,64.72680791]
[1756955206699,0.06,208.28,208.25,65.42680791]
[1756955207517,0.06,208.28,208.25,20.60570103]
[1756955207716,0.06,208.28,208.25,62.78294479]
[1756955207901,0.06,208.28,208.25,62.76294479]
[1756955208298,0.06,208.28,208.25,22.84294479]
[1756955208506,0.77,208.26,208.23,4.16110688]
[1756955208704,0.71,208.25,208.23,13.59559401]
[1756955209324,0.71,208.24,208.23,13.59559401]
[1756955209624,0.71,208.24,208.23,18.68229913]
[1756955210003,0.77,208.26,208.23,18.68229913]
[1756955210334,0.71,208.25,208.23,22.84340601]
[1756955210827,0.06,208.26,208.24,4.16110688]
[1756955211011,0.06,208.26,208.25,13.87991715]
[1756955211202,0.06,208.26,208.25,18.04102403]
[1756955211403,0.77,208.26,208.25,18.04102403]
[1756955211923,0.77,208.26,208.25,22.84294479]
[1756955212305,0.77,208.26,208.25,18.68183791]
[1756955212504,0.77,208.26,208.22,13.87991715]
[1756955212801,0.71,208.25,208.22,13.87991715]
[1756955213023,0.06,208.26,208.22,18.6825163]
[1756955213206,0.71,208.25,208.22,18.6825163]
[1756955213408,0.71,208.24,208.22,18.6825163]
[1756955213730,0.06,208.26,208.22,18.6825163]
[1756955214134,0.71,208.25,208.22,22.84362318]
[1756955214308,0.71,208.24,208.22,18.6825163]
[1756955215007,0.77,208.26,208.22,18.6825163]
[1756955215209,0.06,208.26,208.22,18.6825163]
[1756955215403,0.71,208.25,208.22,18.6825163]
[1756955216413,0.06,208.26,208.22,22.84362318]
[1756955216725,0.77,208.26,208.22,22.84362318]
[1756955216921,0.06,208.26,208.24,13.87991715]
[1756955217106,0.77,208.26,208.24,13.87991715]
[1756955217515,0.71,208.25,208.24,13.87991715]
[1756955217826,0.71,208.25,208.23,13.87991715]
[1756955218023,0.06,208.26,208.23,13.87991715]
[1756955218403,0.77,208.26,208.23,13.87991715]
[1756955218609,0.71,208.25,208.23,13.87991715]
[1756955219115,0.71,208.25,208.23,0.28432314]
[1756955220110,0.06,208.26,208.23,0.28432314]
[1756955220426,0.06,208.26,208.23,4.16110688]
[1756955220613,0.77,208.26,208.23,0.28432314]
[1756955220934,0.06,208.26,208.23,0.28432314]
[1756955221122,0.71,208.25,208.22,13.59559401]
[1756955221307,0.71,208.24,208.22,13.59559401]
[1756955221618,0.77,208.26,208.22,13.59559401]
[1756955221817,0.06,208.26,208.24,13.59559401]
[1756955222126,0.06,208.26,208.25,0.28432314]
[1756955222307,0.06,208.26,208.25,18.68183791]
[1756955223140,0.06,208.26,208.24,8.96322159]
[1756955223314,0.06,208.26,208.24,18.39770872]
[1756955223518,4.87110688,208.25,208.24,13.59559401]
[1756955223704,0.71,208.25,208.21,15.51982733]
[1756955223910,0.71,208.24,208.23,0.03]
[1756955225119,4.87110688,208.24,208.23,0.03]
[1756955225730,0.71,208.24,208.23,0.03]
[1756955227624,4.87110688,208.24,208.23,0.03]
[1756955227823,0.71,208.24,208.23,0.03]
[1756955229849,0.06,208.26,208.23,0.03]
[1756955230936,0.06,208.26,208.23,4.83238198]
[1756955231130,0.77,208.26,208.23,4.83238198]
[1756955231330,0.06,208.26,208.23,4.83238198]
[1756955231937,0.06,208.26,208.23,0.03]
[1756955232356,0.06,208.26,208.24,0.28432314]
[1756955233537,0.74,208.26,208.23,0.03]
[1756955233846,0.06,208.26,208.23,4.83235091]
[1756955234744,4.16110688,208.25,208.23,0.03]
[1756955234927,0.68,208.24,208.23,0.03]
[1756955235326,9.64325824,208.24,208.23,0.03]
[1756955236527,4.84110688,208.24,208.23,0.03]
[1756955237551,8.14360434,208.24,208.23,0.03]
[1756955238230,29.03972962,208.24,208.23,0.03]
[1756955238631,26.0,208.21,208.1,0.71]
[1756955238851,2.66145298,208.15,208.1,0.71]
[1756955239152,2.66145298,208.16,208.11,0.71]
[1756955239326,3.34145298,208.16,208.11,0.71]
[1756955239924,0.68,208.16,208.11,0.71]
[1756955240121,0.68,208.16,208.11,5.5149971]
[1756955240834,3.34145298,208.15,208.11,4.8049971]
[1756955241845,28.66145298,208.16,208.11,4.8049971]
[1756955242051,0.68,208.16,208.11,5.5149971]
[1756955242350,26.68,208.2,208.12,0.71]
[1756955242648,2.66145298,208.17,208.11,4.8049971]
[1756955242826,3.34145298,208.16,208.11,4.8049971]
[1756955243026,3.34145298,208.16,208.11,5.5149971]
[1756955244634,0.68,208.15,208.11,4.8049971]
[1756955244843,2.66145298,208.16,208.11,5.5149971]
[1756955245053,0.68,208.16,208.11,5.5149971]
[1756955245840,0.68,208.18,208.12,8.17627107]
[1756955246238,3.34145298,208.18,208.12,8.17627107]
[1756955247130,3.34145298,208.18,208.12,5.51481809]
[1756955247331,3.34145298,208.18,208.12,8.17627107]
[1756955247535,3.34145298,208.18,208.12,5.51481809]
[1756955247856,0.68,208.18,208.12,5.51481809]
[1756955248046,3.34145298,208.18,208.12,5.51481809]
[1756955248559,3.34145298,208.18,208.12,8.17627107]
[1756955248762,2.66145298,208.23,208.16,16.25704699]
[1756955248946,3.40145298,208.24,208.17,3.65577612]
[1756955249257,2.66145298,208.22,208.17,0.99432314]
[1756955249456,0.68,208.21,208.17,0.99432314]
[1756955250640,3.34145298,208.23,208.17,5.79787085]
[1756955251559,0.68,208.23,208.17,8.45932383]
[1756955251938,0.68,208.23,208.18,2.66145298]
[1756955253172,0.06,208.24,208.19,21.3446748]
[1756955254278,0.06,208.24,208.2,7.46437425]
[1756955254562,0.06,208.24,208.21,2.66145298]
[1756955254750,0.06,208.24,208.23,2.66145298]
[1756955254957,0.06,208.24,208.21,13.87991715]
[1756955255151,0.06,208.24,208.22,2.66145298]
[1756955255860,0.06,208.24,208.21,13.87991715]
[1756955256245,0.06,208.24,208.21,18.68271691]
[1756955257155,0.74,208.24,208.2,13.87991715]
[1756955257661,3.40145298,208.24,208.2,13.87991715]
[1756955257863,0.74,208.24,208.2,13.87991715]
[1756955259460,0.06,208.24,208.21,4.80284328]
[1756955262968,0.06,208.24,208.23,16.25704699]
[1756955263966,1e-08,208.26,208.25,39.59559401]
[1756955264198,1e-08,208.27,208.26,13.87991715]
[1756955264371,1e-08,208.27,208.26,16.54137013]
[1756955264766,1e-08,208.27,208.26,21.34306032]
[1756955265166,1e-08,208.27,208.26,60.60306032]
[1756955265649,1e-08,208.27,208.26,62.52664588]
[1756955268165,1e-08,208.29,208.28,39.73775558]
[1756955268469,1e-08,208.29,208.28,39.87991715]
[1756955269259,0.06,208.31,208.28,39.87991715]
[1756955269260,1e-08,208.3,208.29,13.87991715]
[1756955269458,1e-08,208.3,208.29,56.98748996]
[1756955270559,1e-08,208.31,208.29,56.98748996]
[1756955270762,1e-08,208.31,208.3,17.23137013]
[1756955271173,1e-08,208.31,208.3,22.03213825]
[1756955272368,0.06,208.34,208.31,13.87991715]
[1756955272574,0.06,208.34,208.33,16.54137013]
[1756955273275,0.72,208.38,208.34,39.87991715]
[1756955273479,0.06,208.38,208.37,16.54137013]
[1756955274473,0.72,208.38,208.37,16.54137013]
[1756955275172,0.06,208.38,208.37,21.34052547]
[1756955276268,1e-08,208.38,208.37,22.03052547]
[1756955276474,1e-08,208.38,208.37,23.95309403]
[1756955276658,1e-08,208.38,208.37,49.95309403]
[1756955276863,1e-08,208.38,208.37,62.99309403]
[1756955277277,0.06,208.44,208.38,0.28432314]
[1756955277465,0.06,208.44,208.43,13.87991715]
[1756955277660,0.06,208.44,208.43,55.64137013]
[1756955278082,0.86,208.47,208.43,52.97991715]
[1756955278383,0.72,208.46,208.45,2.66145298]
[1756955278585,0.72,208.46,208.45,41.76145298]
[1756955278771,0.06,208.46,208.45,41.76145298]
[1756955278961,0.06,208.46,208.45,2.66145298]
[1756955279168,0.72,208.46,208.45,41.76145298]
[1756955279569,0.72,208.46,208.45,4.7973135]
[1756955279885,0.72,208.46,208.45,46.55876648]
[1756955280080,0.72,208.46,208.45,7.45876648]
[1756955280288,0.72,208.46,208.45,46.53876648]
[1756955280489,0.72,208.46,208.45,7.45876648]
[1756955280686,0.72,208.46,208.45,46.51876648]
[1756955281583,0.72,208.46,208.45,43.8573135]
[1756955281767,0.72,208.46,208.45,46.51876648]
[1756955281969,0.72,208.46,208.45,7.45876648]
[1756955282175,0.72,208.46,208.42,13.59559401]
[1756955282378,0.66,208.45,208.42,13.59559401]
[1756955282688,0.66,208.44,208.42,13.59559401]
[1756955282894,0.66,208.43,208.41,4.79823424]
[1756955283100,0.66,208.42,208.41,52.63559401]
[1756955283388,0.66,208.42,208.4,52.65559401]
[1756955283570,0.66,208.41,208.4,52.93991715]
[1756955283761,0.66,208.41,208.4,52.65559401]
[1756955283963,0.66,208.41,208.4,57.73838164]
[1756955284485,0.66,208.41,208.4,57.4540585]
[1756955284685,2.72145298,208.46,208.41,0.28432314]
[1756955284686,0.66,208.44,208.41,0.28432314]
[1756955284873,0.66,208.43,208.41,2.94577612]
[1756955285075,0.66,208.42,208.4,60.07551148]
[1756955285285,0.66,208.41,208.4,57.69838164]
[1756955286072,0.66,208.43,208.4,60.35983462]
[1756955286272,0.66,208.42,208.4,60.35983462]
[1756955286710,0.66,208.42,208.41,0.28432314]
[1756955286984,0.66,208.42,208.41,2.94577612]
[1756955287191,0.66,208.44,208.41,2.94577612]
[1756955287394,0.66,208.43,208.42,38.98]
[1756955288607,0.06,208.46,208.42,46.43945701]
[1756955288896,0.66,208.45,208.43,13.87991715]
[1756955289069,0.66,208.45,208.44,52.85991715]
[1756955289466,0.66,208.45,208.44,39.0]
[1756955289884,0.66,208.45,208.43,2.66145298]
[1756955290085,0.66,208.44,208.43,52.87991715]
[1756955290279,0.66,208.44,208.43,39.0]
[1756955290681,0.66,208.44,208.42,43.77800403]
[1756955290900,0.66,208.43,208.42,57.65792118]
[1756955291790,0.66,208.43,208.42,57.63792118]
[1756955292300,0.66,208.43,208.42,57.65792118]
[1756955292492,0.66,208.43,208.42,18.67792118]
[1756955292693,0.66,208.43,208.41,38.96]
[1756955292889,0.7,208.42,208.4,4.79841668]
[1756955293197,0.7,208.41,208.4,52.83991715]
[1756955293390,0.7,208.41,208.4,13.87991715]
[1756955293596,0.7,208.43,208.4,16.54137013]
[1756955294174,0.76,208.46,208.41,55.52137013]
[1756955294477,0.7,208.45,208.41,55.52137013]
[1756955294673,0.7,208.44,208.41,55.52137013]
[1756955294889,0.7,208.44,208.42,2.66145298]
[1756955295086,0.06,208.46,208.43,38.98]
[1756955295292,0.76,208.46,208.43,41.64145298]
[1756955295486,0.76,208.46,208.43,38.98]
[1756955295700,0.76,208.46,208.43,41.64145298]
[1756955295895,0.76,208.46,208.44,13.87991715]
[1756955296209,0.06,208.46,208.45,55.48137013]
[1756955296416,0.06,208.46,208.45,56.18137013]
[1756955296778,0.06,208.46,208.45,56.75704775]
[1756955297284,0.2,208.47,208.46,13.87991715]
[1756955297593,0.2,208.47,208.46,18.7242163]
[1756955298482,1e-08,208.47,208.46,18.0242163]
[1756955298686,1e-08,208.48,208.46,19.2998663]
[1756955298994,1e-08,208.49,208.48,39.87991715]
[1756955299201,1e-08,208.49,208.48,48.82083947]
[1756955299496,1e-08,208.49,208.48,61.72083947]
[1756955299691,1e-08,208.49,208.48,57.57654032]
[1756955299903,1e-08,208.49,208.48,61.72083947]
[1756955301489,1e-08,208.49,208.48,57.57654032]
[1756955301691,0.70000001,208.49,208.47,4.7968411]
[1756955301887,0.7,208.48,208.46,13.59559401]
[1756955302101,0.7,208.48,208.47,52.75991715]
[1756955302506,0.7,208.48,208.47,13.59559401]
[1756955302804,1e-08,208.49,208.47,38.88]
[1756955303212,0.7,208.48,208.47,38.88]
[1756955303509,1e-08,208.49,208.48,4.79662317]
[1756955304011,1e-08,208.49,208.48,57.53654032]
[1756955304197,1e-08,208.49,208.48,18.67654032]
[1756955304388,1e-08,208.49,208.48,57.53654032]
[1756955305409,1e-08,208.49,208.48,61.68083947]
[1756955305610,0.70000001,208.49,208.42,2.62219899]
[1756955305913,0.7,208.48,208.45,13.59559401]
[1756955306097,0.7,208.47,208.45,52.45559401]
[1756955306294,0.7,208.46,208.45,52.45559401]
[1756955306601,0.7,208.46,208.42,4.14429915]
[1756955306910,0.7,208.45,208.43,52.43559401]
[1756955307304,0.70000001,208.49,208.44,4.14429915]
[1756955307502,0.7,208.48,208.46,22.53693294]
[1756955307700,1e-08,208.49,208.47,38.84]
[1756955307901,4.14429916,208.49,208.46,38.82]
[1756955308398,4.14429916,208.49,208.42,17.73989316]
[1756955308399,4.84429915,208.48,208.42,4.79796868]
[1756955308600,4.84429915,208.47,208.43,38.82]
[1756955308798,4.84429915,208.46,208.43,38.82]
[1756955309006,0.7,208.45,208.43,38.82]
[1756955309197,0.7,208.44,208.43,38.82]
[1756955309900,0.7,208.44,208.41,18.3937636]
[1756955310098,0.7,208.43,208.41,4.79816959]
[1756955310294,0.7,208.43,208.41,43.59816959]
[1756955311210,4.14429915,208.46,208.41,43.59816959]
[1756955311402,0.7,208.42,208.39,13.59559401]
[1756955311592,0.7,208.42,208.4,38.8]
[1756955311792,4.14429915,208.46,208.4,43.59842691]
[1756955312199,0.7,208.45,208.4,43.59842691]
[1756955312399,0.7,208.44,208.4,43.59842691]
[1756955312603,4.14429915,208.44,208.4,38.8]
[1756955312804,0.7,208.43,208.4,38.8]
[1756955313103,4.14429915,208.41,208.37,0.03]
[1756955313424,4.14429915,208.38,208.37,0.03]
[1756955313901,4.84429915,208.38,208.37,0.03]
[1756955315917,9.64322419,208.38,208.37,0.03]
[1756955316518,5.49892504,208.38,208.37,0.03]
[1756955316741,9.64322419,208.38,208.37,0.03]
[1756955317822,12.83225246,208.38,208.37,0.03]
[1756955318223,9.64322419,208.38,208.37,0.03]
[1756955321232,22.27719138,208.38,208.36,0.03]
[1756955321528,4.14429915,208.37,208.36,0.03]
[1756955322007,4.83429915,208.37,208.36,0.03]
[1756955322212,48.43345449,208.37,208.36,0.03]
[1756955332441,47.74345449,208.37,208.36,0.03]
[1756955332620,48.43345449,208.37,208.36,0.03]
[1756955333026,48.49345449,208.37,208.36,0.03]
[1756955333428,52.63775364,208.37,208.36,0.03]
[1756955334336,26.0,208.35,208.34,0.03]
[1756955334533,34.2885983,208.35,208.34,0.03]
[1756955334737,34.9785983,208.35,208.34,0.03]
[1756955335122,73.5985983,208.35,208.34,0.03]
[1756955335323,73.5985983,208.35,208.33,0.03]
[1756955335526,8.2885983,208.34,208.33,0.03]
[1756955336139,8.9785983,208.34,208.33,0.03]
[1756955336535,13.7784447,208.34,208.33,0.03]
[1756955341261,27.65836185,208.34,208.33,0.03]
[1756955342247,4.7998464,208.34,208.33,0.03]
[1756955342545,8.94414555,208.34,208.33,0.03]
[1756955343226,4.14429915,208.34,208.33,0.03]
[1756955343435,38.62,208.35,208.33,0.72]
[1756955343645,4.14429915,208.34,208.33,0.72]
[1756955343826,4.14429915,208.34,208.33,0.03]
[1756955345149,35.63414555,208.34,208.33,0.03]
[1756955345947,13.7784447,208.34,208.33,0.03]
[1756955348432,16.95061874,208.34,208.33,0.03]
[1756955348650,13.7784447,208.34,208.33,0.03]
[1756955349040,5.4898464,208.34,208.33,0.03]
[1756955349259,26.0,208.32,208.31,0.03]
[1756955349434,68.74429915,208.32,208.31,0.03]
[1756955349635,69.43429915,208.32,208.31,0.03]
[1756955350629,69.43429915,208.32,208.26,0.03]
[1756955350857,65.29,208.32,208.26,0.03]
[1756955351052,4.14429915,208.27,208.26,0.03]
[1756955351355,47.54575879,208.27,208.26,0.03]
[1756955353155,48.23575879,208.27,208.26,0.03]
[1756955356146,51.42024232,208.27,208.26,0.03]
[1756955357156,47.27594317,208.27,208.26,0.03]
[1756955357348,51.42024232,208.27,208.26,0.03]
[1756955357733,7.98594317,208.27,208.26,0.03]
[1756955357943,3.18448353,208.27,208.26,0.72]
[1756955358148,141.55584222,208.34,208.26,5.52156716]
[1756955358149,4.14429915,208.31,208.26,5.52156716]
[1756955358349,42.70429915,208.32,208.27,0.69]
[1756955358541,42.70429915,208.33,208.27,0.69]
[1756955358742,68.70429915,208.33,208.27,0.69]
[1756955358943,30.14429915,208.33,208.27,0.69]
[1756955359353,4.14429915,208.32,208.27,0.69]
[1756955359551,2.65839779,208.32,208.27,5.49143973]
[1756955359746,2.65839779,208.32,208.28,0.69]
[1756955359747,41.21839779,208.32,208.28,0.69]
[1756955359962,41.21839779,208.32,208.26,4.83166102]
[1756955359963,2.65839779,208.3,208.29,0.69]
[1756955360162,2.65839779,208.3,208.26,0.03]
[1756955360479,2.65839779,208.31,208.26,4.83160826]
[1756955360785,2.65839779,208.3,208.27,0.69]
[1756955361060,38.56,208.32,208.27,3.34839779]
[1756955361242,38.56,208.32,208.28,0.69]
[1756955361442,2.65839779,208.33,208.28,5.49111406]
[1756955361661,2.65839779,208.33,208.29,0.69]
[1756955362246,2.65839779,208.33,208.3,0.69]
[1756955362562,38.62,208.34,208.31,0.69]
[1756955362864,2.65839779,208.32,208.31,0.69]
[1756955364443,46.70871413,208.32,208.26,0.03]
[1756955364757,2.65839779,208.27,208.26,0.03]
[1756955365163,2.65839779,208.28,208.26,0.72]
[1756955366663,43.36079796,208.3,208.26,0.72]
[1756955366966,2.65839779,208.28,208.26,0.72]
[1756955367749,2.65839779,208.27,208.26,0.72]
[1756955368140,43.36079796,208.3,208.26,0.72]
[1756955368347,2.65839779,208.28,208.26,0.72]
[1756955369049,2.65839779,208.27,208.26,0.72]
[1756955370068,28.65839779,208.27,208.26,0.03]
[1756955370272,41.90839779,208.27,208.26,0.03]
[1756955370786,46.70985743,208.27,208.26,0.03]
[1756955371082,26.0,208.24,208.23,0.03]
[1756955371272,77.85198895,208.24,208.23,0.03]
[1756955371573,81.73592507,208.24,208.23,0.03]
[1756955371800,81.73592507,208.24,208.22,0.1]
[1756955371997,16.48592507,208.23,208.22,0.1]
[1756955372152,21.28830705,208.23,208.22,0.1]
[1756955372353,21.97830705,208.23,208.22,0.1]
[1756955373186,18.78437093,208.23,208.21,0.03]
[1756955373365,18.78437093,208.23,208.19,0.03]
[1756955373366,28.65839779,208.2,208.19,0.03]
[1756955373678,67.21839779,208.2,208.19,0.03]
[1756955373882,67.90839779,208.2,208.19,0.03]
[1756955374191,69.36307396,208.2,208.19,0.03]
[1756955374390,72.71147175,208.2,208.19,0.03]
[1756955377303,22.63954611,208.23,208.19,0.03]
[1756955377304,26.0,208.23,208.19,0.03]
[1756955377463,28.65839779,208.2,208.19,0.03]
[1756955377661,67.27839779,208.2,208.19,0.03]
[1756955377867,64.62,208.2,208.19,0.03]
[1756955378278,67.27839779,208.2,208.19,0.03]
[1756955379676,38.62,208.2,208.19,0.03]
[1756955379883,41.27839779,208.2,208.19,0.03]
[1756955380675,38.62,208.2,208.19,0.03]
[1756955380874,41.27839779,208.2,208.19,0.03]
[1756955381286,2.65839779,208.2,208.19,0.72]
[1756955381592,5.49076812,208.3,208.19,0.72]
[1756955381776,2.65839779,208.23,208.19,0.72]
[1756955382293,2.65839779,208.24,208.2,4.80307396]
[1756955382487,2.65839779,208.24,208.21,0.66]
[1756955382687,41.57839779,208.25,208.21,0.66]
[1756955383072,2.65839779,208.26,208.21,0.66]
[1756955383492,2.65839779,208.25,208.21,0.66]
[1756955383695,38.9,208.27,208.21,0.66]
[1756955383995,2.65839779,208.25,208.21,0.66]
[1756955384470,2.65839779,208.25,208.22,4.80261262]
[1756955384669,2.65839779,208.25,208.23,0.66]
[1756955385179,2.65839779,208.26,208.24,0.66]
[1756955385490,26.0,208.29,208.22,4.80261262]
[1756955385491,2.65839779,208.28,208.25,0.66]
[1756955385699,2.65839779,208.28,208.26,0.66]
[1756955385990,0.06,208.31,208.24,2.65839779]
[1756955386208,2.71839779,208.31,208.27,0.66]
[1756955386369,2.71839779,208.31,208.28,0.66]
[1756955386990,2.65839779,208.29,208.26,0.66]
[1756955387294,0.06,208.31,208.27,0.66]
[1756955387476,2.71839779,208.31,208.25,0.66]
[1756955387792,2.65839779,208.29,208.25,0.66]
[1756955388193,2.65839779,208.29,208.26,0.66]
[1756955388499,2.71839779,208.28,208.23,5.46234576]
[1756955388699,2.65839779,208.27,208.24,0.66]
[1756955388898,0.06,208.28,208.24,0.66]
[1756955389096,2.71839779,208.28,208.24,0.66]
[1756955389598,2.71839779,208.28,208.25,0.66]
[1756955390187,2.71839779,208.28,208.23,4.80234576]
[1756955390382,2.71839779,208.28,208.24,0.66]
[1756955390883,2.71839779,208.28,208.26,2.65839779]
[1756955390884,0.06,208.28,208.26,2.65839779]
[1756955391089,0.06,208.28,208.27,3.31839779]
[1756955391388,0.06,208.28,208.27,0.66]
[1756955392283,0.06,208.28,208.27,17.19831494]
[1756955392601,0.06,208.28,208.27,14.53991715]
[1756955392801,0.06,208.28,208.27,19.34137679]
[1756955394396,0.06,208.28,208.27,5.46145964]
[1756955400604,0.06,208.28,208.27,4.80145964]
[1756955400915,0.06,208.28,208.26,4.80165332]
[1756955401125,0.71,208.28,208.23,13.59559401]
[1756955401328,3.36839779,208.28,208.24,4.80215136]
[1756955402027,2.71839779,208.28,208.24,4.80215136]
[1756955402208,0.65,208.27,208.24,4.80215136]
[1756955402410,3.36839779,208.28,208.24,4.80215136]
[1756955402716,0.06,208.28,208.24,5.46215136]
[1756955403727,0.06,208.28,208.25,0.66]
[1756955403912,0.06,208.28,208.25,3.31839779]
[1756955404113,0.06,208.28,208.26,3.31839779]
[1756955404628,0.06,208.28,208.24,7.46054915]
[1756955404829,0.71,208.28,208.24,4.80215136]
[1756955405015,0.06,208.28,208.24,4.80215136]
[1756955405334,0.65,208.27,208.22,21.34092756]
[1756955405624,0.65,208.27,208.22,18.39820663]
[1756955405625,3.30839779,208.27,208.22,18.39820663]
[1756955405826,0.06,208.28,208.24,2.65839779]
[1756955406026,0.06,208.28,208.26,2.65839779]
[1756955406201,0.06,208.28,208.26,3.31839779]
[1756955406401,0.06,208.28,208.23,13.87991715]
[1756955406642,0.71,208.28,208.23,14.53991715]
[1756955406816,0.71,208.28,208.23,0.66]
[1756955407216,3.30839779,208.27,208.22,4.80261262]
[1756955407518,0.06,208.28,208.22,4.80261262]
[1756955407834,0.06,208.28,208.22,8.12101041]
[1756955408018,2.71839779,208.28,208.22,5.46261262]
[1756955408811,0.06,208.28,208.22,8.12101041]
[1756955409135,0.06,208.28,208.23,3.31839779]
[1756955409606,0.06,208.28,208.24,0.66]
[1756955410323,0.06,208.28,208.25,4.80192076]
[1756955411032,2.71839779,208.28,208.25,4.80192076]
[1756955411213,0.06,208.28,208.25,5.46192076]